[Event "Lliga Catalana DH 2023"]
[Site "Catalonia"]
[Date "2023.02.18"]
[Round "5.7"]
[White "Romero Calderon, Juan"]
[Black "Pang, Khai Jie Ryan"]
[Result "1/2-1/2"]
[ECO "D94"]
[WhiteElo "2082"]
[BlackElo "1841"]
[Annotator "TA"]
[PlyCount "159"]
[EventDate "2023.01.24"]
[EventType "team-tourn"]
[EventCountry "ESP"]
[SourceTitle "playchess.com"]
[Source "ChessBase"]
[SourceQuality "1"]
[TimeControl "40/5400+30:1800+30"]

{[%evp 13,159,7,8,0,0,-3,0,-10,-16,-18,-8,-22,-18,-19,-16,-17,-11,-21,-14,-216,-18,-14,0,0,0,0,0,0,0,-14,0,7,22,22,24,24,24,24,25,22,28,0,0,0,0,0,0,0,0,0,15,0,0,-11,0,0,0,0,0,-33,-39,-40,-40,-226,-208,-184,-193,-179,0,0,-4,-19,-12,-32,81,0,0,-88,-88,-79,-85,-139,0,0,0,0,0,0,0,-16,-22,-91,-92,-92,-92,-83,-8,-8,-8,-8,-10,-201,-178,-353,-283,-604,-833,-1399,-1299,-1287,-4590,-29955,-1315,-4578,-29955,-29944,-4602,-10158,-3201,-29959,-29960,-29953,-29961,-29957,-29963,-29957,0,0,0,0,0,0,0,0,0,0,0,0,0,0,0,0,0,0,0,0,0,0]} 1. Nf3 d5 2. d4 Nf6 3. e3 g6 4. c4 c6 5. Nc3 Bg7 6. cxd5 cxd5 7. Bb5+ Bd7 8. Bxd7+ {D94: Grünfeld: 4 Nf3 Bg7 5 e3.} Nbxd7 9. O-O O-O 10. b3 Qa5 11. Bb2 {[#]} Rfc8 $146 ({Predecessor:} 11... Ne4 12. Qd3 Nd6 13. Rfc1 e6 14. a4 Rfc8 15. Ba3 Bf8 16. Ne5 Nxe5 17. dxe5 Nf5 18. Bxf8 Kxf8 {½-½ Antunac,G-Kuprejanov,G Zagreb PTT 60th anniversary 1964 (11)}) 12. Qd3 e6 13. Rfc1 a6 14. a3 Qd8 15. Ne2 Ne4 16. Nd2 $2 (16. a4 $11 {and White stays safe.}) 16... Nxd2 $2 (16... Ndc5 $1 $19 {[%cal Rc5d3]} 17. Rxc5 Nxc5 {[%mdl 64] Pin}) 17. Qxd2 $11 Rc6 18. Rxc6 bxc6 19. Rc1 Qb6 20. Qc2 Rc8 21. Nc3 Rb8 22. b4 Qb7 {[%cal Oa6a5]} 23. Na4 Rc8 24. Bc3 h5 25. g3 Bf6 26. Be1 Be7 27. Nc5 Nxc5 28. bxc5 Rb8 29. Ba5 Qb3 30. Bb6 Qxc2 31. Rxc2 {[%mdl 4096] Endgame KRB-KRB} Kf8 32. Kg2 Ke8 33. a4 Kd7 34. f4 f6 35. Kf3 e5 36. h3 exd4 37. exd4 {[%cal Of4f5]} f5 38. Ke3 $2 (38. h4 $15) 38... Bf6 $19 39. Kd3 {[#]} Re8 40. Ba5 Rb8 $2 (40... h4 $19 41. Rg2 Re4) 41. Bb6 $11 h4 42. Rg2 Ke6 43. g4 Kf7 (43... fxg4 $15 44. Rxg4 Kf7) 44. gxf5 (44. g5 $16 Bg7 45. Re2) 44... gxf5 45. Re2 (45. Rg1 $11 {remains equal.}) 45... Rg8 $17 46. Bc7 Rg1 47. Be5 {[#]} (47. Ba5 $142) 47... Ra1 (47... Rh1 $1 $17 {[%cal Rh1h3]} 48. Re3 a5) 48. Rb2 $1 $11 Ra3+ 49. Ke2 Bxe5 50. fxe5 Rxa4 {KR-KR} 51. Ke3 Ke6 {[%cal Of5f4] Hoping for ...f4+!} 52. Rb6 {[#]} (52. Rb8 $1 $11 {keeps the balance.}) 52... f4+ $1 $17 53. Kd3 Ra3+ 54. Ke2 Kf5 ({But not} 54... Rxh3 $6 55. Rxc6+ Kf5 56. Rf6+ Kg5 57. Rf8 $11) ({Better is} 54... Kd7 $17 55. Rb7+ Ke6) 55. Rxc6 $11 Ke4 {aiming for ...f3+.} 56. Rf6 $1 f3+ (56... Rxh3 $2 57. e6 Rh2+ 58. Kf1 $18) (56... Kxd4 {simplifies} 57. Rxf4+ Kxc5 58. Rxh4 a5) 57. Kf2 $2 (57. Kd2 $11 {and White is okay.}) 57... Ra2+ $19 ({Worse is} 57... Kxd4 58. e6 Ra2+ 59. Kxf3 $11) 58. Kg1 $2 (58. Ke1 {was the only chance.}) 58... Kxd4 59. e6 $2 (59. Rxf3 Kxe5 60. Rf8) 59... Kxc5 60. e7 Re2 61. Rxa6 Rxe7 62. Kf2 Rf7 (62... d4 $142 63. Ra5+ Kc4 64. Rh5 Re2+ 65. Kxf3 Re3+ 66. Kg2 d3 67. Rxh4+ Kc3 68. Kf2 d2 69. Kxe3 d1=Q 70. Kf4 Qd3 71. Kg5 Qg3+ 72. Kh5 Kd3 73. Rg4 Qxh3+ 74. Kg5 Ke3 75. Rh4 Qg2+ 76. Rg4 Qd5+ 77. Kh4 Qd8+ 78. Kh5 Qh8+ 79. Kg5 Qe5+ 80. Kh6 Kf3 81. Rg5 Qe3 82. Kg6 Qe6+ 83. Kg7 Kf4 84. Rg1 Qe5+ 85. Kg8 Kf5 86. Rb1 Qd5+ 87. Kf8 Qc4 88. Kg7 Qd3 89. Rh1 Qd7+ 90. Kf8 Qc8+ 91. Ke7 Qb7+ 92. Kd6 Qxh1 93. Kc5 Qe4 94. Kb6 Ke6 95. Kc5 Kd7 96. Kb5 Kd6 97. Ka6 Qb4 98. Ka7 Kc7 99. Ka8 Qb8#) 63. Ra5+ Kc4 (63... Kd4 $19 64. Ra4+ Kc3 65. Rxh4 d4) 64. Ra4+ Kc3 65. Rxh4 d4 66. Rh8 d3 67. Rc8+ Kd2 68. Rc4 Kd1 69. h4 d2 $2 (69... Rf5 {mates} 70. Rc3 d2 71. Rc4 Rd5 72. Kf1 Rh5 73. Kf2 Rh6 74. Kxf3 Rd6 75. Ra4 Kc2 76. Ra1 Rd4 77. Ke3 Rxh4 78. Ra2+ Kc1 79. Rxd2 Rh3+ 80. Ke2 Rh2+ 81. Kd3 Rxd2+ 82. Ke4 Kc2 83. Ke5 Kc3 84. Ke4 Re2+ 85. Kf4 Kd4 86. Kf5 Re4 87. Kf6 Re5 88. Kf7 Kd5 89. Kf6 Kd6 90. Kf7 Re6 91. Kf8 Re7 92. Kg8 Ke6 93. Kf8 Kf6 94. Kg8 Re8+ 95. Kh7 Rd8 96. Kh6 Rh8#) 70. Rc5 {The position is equal.} Rf4 71. h5 Rh4 {( -> ...Rh3)} 72. Kxf3 Ke1 73. Re5+ Kf1 74. Rd5 Rh3+ 75. Kg4 Rh2 76. Kg5 Ke1 77. h6 d1=Q 78. Rxd1+ Kxd1 79. Kg6 Rxh6+ 80. Kxh6 {White happily takes the draw.   Weighted Error Value: White=0.55/Black=0.18 (very precise)} 1/2-1/2

[Event "Lliga Catalana DH 2023"]
[Site "Catalonia"]
[Date "2023.02.18"]
[Round "5.8"]
[White "Ano Pla, Gerard"]
[Black "Macaya Ruiz, Alfons"]
[Result "1-0"]
[ECO "A45"]
[WhiteElo "2190"]
[BlackElo "2062"]
[Annotator "TA"]
[PlyCount "63"]
[EventDate "2023.01.24"]
[EventType "team-tourn"]
[EventCountry "ESP"]
[SourceTitle "playchess.com"]
[Source "ChessBase"]
[SourceQuality "1"]
[TimeControl "40/5400+30:1800+30"]

{[%evp 10,63,20,15,25,19,10,-43,-46,-75,-86,-79,-70,-62,-58,-79,-33,-48,-43,-45,0,0,0,0,104,65,127,110,218,240,353,297,289,283,305,271,269,214,383,368,594,562,572,530,570,548,5043,5214,958,895,29977,29978,29976,29977,29962,6598]} 1. d4 Nf6 2. Bg5 c5 3. Bxf6 gxf6 4. d5 Qb6 5. Qc1 Bh6 6. e3 $1 (6. Qxh6 $2 Qxb2 7. e4 Qxa1 $19) 6... d6 {A45: Trompowsky Attack.} 7. Nd2 Nd7 {[#]} 8. f4 $146 (8. Ne2 $11) ({Predecessor:} 8. g3 f5 9. Bg2 Bg7 10. Rb1 Qa6 11. a3 b5 12. Nh3 b4 13. Ra1 Qb6 14. axb4 cxb4 {½-½ Cirulli,D (2125)-Romero Barreto,J (2367) Santa Fe Perez op 2023 (3)}) 8... f5 $15 {Black is slightly better.} 9. Bd3 Nf6 10. c4 Ng4 (10... Rg8 {simplifies} 11. Ngf3 e5 12. dxe6 fxe6 13. O-O Bd7) 11. Ke2 Bg7 12. Rb1 Bd7 (12... e5 $17) 13. Qc2 e6 14. Ngf3 Nf6 (14... O-O-O {keeps more tension.} 15. Rhe1 Rhe8 16. h3 Nf6) 15. a3 a5 16. h3 {[%cal Bh2h3,Bh3g4,Bg4g5][%mdl 32]} Ra6 (16... Rg8 $11) 17. g4 {White stays focused until the end.} fxg4 (17... exd5 $14 18. Bxf5 (18. gxf5 d4 $14) 18... Bxf5 19. Qxf5 dxc4) 18. hxg4 $16 exd5 (18... Nxg4 $16 {is a better defense.} 19. dxe6 Bxe6) 19. g5 $18 (19. Bxh7 Bxg4 20. cxd5 Nxd5 $15) 19... Ne4 (19... Ng4 {was necessary.}) 20. Nxe4 (20. cxd5 Ng3+ 21. Kf2 Nxh1+ 22. Rxh1 Ra7 $14) 20... dxe4 21. Bxe4 {And now Bd5 would win.} Qd8 22. Bxb7 ({Don't play} 22. Bxh7 $6 Qc8 23. e4 Ke7 $18) 22... Rb6 23. Rxh7 Rxh7 (23... Qb8) 24. Qxh7 Rxb2+ $2 (24... Qe7 25. Qxg7 Rxb7) 25. Rxb2 Bxb2 26. Bd5 {[%csl Gd5][%cal Rh7f7]} Qe7 27. Qb1 {Prevents f5.} Bxa3 28. Qb8+ Qd8 29. Qxd6 {[%cal Od5f7] White threatens Bxf7+! and mate.} Qe7 30. Qb8+ {White mates.} Qd8 31. Qe5+ Qe7 {[#]} 32. Bxf7+ $1 {[%mdl 512] Weighted Error Value: White=0.16 (very precise) /Black=0.68} 1-0

[Event "Lliga Catalana DH 2023"]
[Site "Catalonia"]
[Date "2023.02.18"]
[Round "5.8"]
[White "Garcia Marin, Guillem"]
[Black "Rivas Garcia, Victor"]
[Result "1/2-1/2"]
[ECO "A80"]
[WhiteElo "2038"]
[BlackElo "2110"]
[Annotator "TA"]
[PlyCount "74"]
[EventDate "2023.01.24"]
[EventType "team-tourn"]
[EventCountry "ESP"]
[SourceTitle "playchess.com"]
[Source "ChessBase"]
[SourceQuality "1"]
[TimeControl "40/5400+30:1800+30"]

{[%evp 9,74,0,0,0,41,-16,-12,-33,-11,-29,-37,-22,0,0,0,0,5,-54,-47,-68,-60,-154,-14,-11,-9,-17,-17,-14,-7,-29,0,20,36,44,39,0,117,-4,-6,-9,-4,-20,-20,-32,-5,-42,-41,-43,-27,-59,-59,-68,-50,-54,-45,-47,-48,-41,0,-41,0,-41,0,-41,0,-45,0]} 1. d4 {[%emt 0:00:07]} f5 {[%emt 0:00:06]} 2. Bg5 {[%emt 0:00:44]} g6 {[%emt 0:00:05]} 3. h4 {[%emt 0:01:22]} Bg7 {[%emt 0:00:30]} 4. e3 {[%emt 0:04:21]} h6 {[%emt 0:01:36]} 5. Bf4 {[%emt 0:00:10]} d6 {[%emt 0:00:07]} 6. Nc3 {[%emt 0:07:43] A80: Dutch Defence: Unusual White second moves.} Nf6 {[%emt 0:00:41]} 7. Bd3 {[%emt 0:02:24] 7.Bc4 is setting a new trend.} (7. Qf3 $14) 7... Nc6 $11 {[%emt 0:04:29] [#]} 8. Bg3 $146 {[%emt 0:03:23] The position is equal.} ({Predecessor:} 8. Nf3 O-O 9. Qe2 a6 10. a3 Qe8 11. O-O b5 12. d5 Nd8 13. Bh2 e5 14. dxe6 Nxe6 {½-½ McCarron,P-Solovieva,K (1375) London Chess Classic op 10th 2018 (2)}) 8... O-O {[%emt 0:02:29]} 9. Nge2 {[%emt 0:01:51]} e5 {[%emt 0:04:57] Against Nf4} 10. dxe5 {[%emt 0:05:53]} dxe5 {[%emt 0:01:02]} 11. Bc4+ {[%emt 0:01:24]} Kh7 {[%emt 0:00:48]} 12. Qxd8 $1 {[%emt 0:01:21]} Rxd8 {[%emt 0:00:08]} 13. Bb5 {[%emt 0:01:21]} (13. a3 $11) 13... Nb4 {[%emt 0:07:28]} 14. Ba4 {[%emt 0:01:04]} Nh5 {[%emt 0:02:11]} 15. Bb3 {[%emt 0:01:36] [#]} (15. a3 $15 Na6 16. Bb3) 15... Bd7 {[%emt 0:08:46]} ({Black should play} 15... Be6 $1 $17 {[%cal Re6b3] White must now prevent ...Bxb3.} 16. O-O Bxb3 17. cxb3 Nd3) 16. O-O-O {[%emt 0:03:10]} Bc6 {[%emt 0:02:22]} 17. f3 {[%emt 0:01:06]} Nxg3 {[%emt 0:01:50]} 18. Nxg3 {[%emt 0:00:12]} h5 {[%emt 0:00:59]} (18... Rxd1+ {simplifies} 19. Rxd1 h5 20. a3 Na6) 19. e4 {[%emt 0:02:26]} Bh6+ {[%emt 0:06:27]} (19... f4 $142 20. Nge2 Rxd1+ 21. Rxd1 Bf6) 20. Kb1 {[%emt 0:00:18]} Bf4 {[%emt 0:01:06]} 21. Nge2 {[%emt 0:07:59] Nxf4 would be deadly.} fxe4 {[%emt 0:03:33]} 22. Nxe4 {[%emt 0:03:27]} Be3 {[%emt 0:06:37] [#]} (22... Bxe4 $11 23. fxe4 Be3) 23. a3 {[%emt 0:02:37]} ({Better is} 23. N2c3 $1 $16) 23... Bxe4 {[%emt 0:02:00]} 24. axb4 {[%emt 0:06:00]} Bf5 {[%emt 0:05:44]} 25. Nc3 {[%emt 0:01:42]} c6 {[%emt 0:04:04] Wards off Nd5} 26. Ne4 {[%emt 0:02:24]} Kg7 {[%emt 0:06:49]} 27. Bc4 {[%emt 0:03:24]} Bxe4 {[%emt 0:02:00]} 28. fxe4 {[%emt 0:00:11]} Rd4 {[%emt 0:00:40]} 29. Bb3 {[%emt 0:10:46]} Rad8 {[%emt 0:03:08]} 30. c3 {[%emt 0:00:32]} Rxd1+ {[%emt 0:01:00]} 31. Bxd1 $15 {[%emt 0:04:04][%mdl 4096] Endgame KRB-KRB} Rd2 {[%emt 0:01:21]} 32. Bf3 {[%emt 0:02:51]} Bf2 {[%emt 0:02:26]} 33. Kc1 {[%emt 0:01:25]} Be3 {[%emt 0:00:11]} 34. Kb1 $1 {[%emt 0:00:06]} Bf2 {[%emt 0:01:29]} 35. Kc1 $1 {[%emt 0:00:09]} Be3 {[%emt 0:00:06]} 36. Kb1 $1 {[%emt 0:00:07]} Bf2 {[%emt 0:00:09]} 37. Kc1 $1 {[%emt 0:00:44]} Be3 {[%emt 0:00:07] Weighted Error Value: White=0.20 (precise) /Black=0.24 (precise)} 1/2-1/2

[Event "Lliga Catalana DH 2023"]
[Site "Catalonia"]
[Date "2023.02.18"]
[Round "5.9"]
[White "Salinas Tomas, Daniel"]
[Black "Luque Martin, Jonathan"]
[Result "1-0"]
[ECO "E09"]
[WhiteElo "2147"]
[BlackElo "2002"]
[Annotator "TA"]
[PlyCount "73"]
[EventDate "2023.01.24"]
[EventType "team-tourn"]
[EventCountry "ESP"]
[SourceTitle "playchess.com"]
[Source "ChessBase"]
[SourceQuality "1"]
[TimeControl "40/5400+30:1800+30"]

{[%evp 17,73,31,20,0,10,26,34,25,4,-8,60,54,61,73,66,43,66,37,47,45,84,91,116,68,65,68,119,112,191,188,179,196,188,193,168,184,234,233,443,412,2969,2962,2356,2341,29988,29988,29988,29989,29993,29990,29990,29985,29985,5437,2118,1595,29992,29993]} 1. d4 {[%emt 0:00:55]} e6 {[%emt 0:06:10]} 2. c4 {[%emt 0:00:13]} Nf6 {[%emt 0:00:11]} 3. g3 {[%emt 0:00:20]} d5 {[%emt 0:01:48]} 4. Nf3 {[%emt 0:00:09]} Be7 {[%emt 0:00:46]} 5. Bg2 {[%emt 0:00:06]} c6 {[%emt 0:00:08]} 6. Qc2 {[%emt 0:00:10]} Nbd7 {[%emt 0:00:50]} 7. O-O {[%emt 0:00:10]} O-O {[%emt 0:00:40]} 8. Nbd2 {[%emt 0:00:07]} b6 {[%emt 0:03:08]} 9. e4 {[%emt 0:00:23]} Ba6 {[%emt 0:08:23] Recently 9...dxc4 got a lot of attention.} 10. Re1 {[%emt 0:05:26] E09: Closed Catalan: Main Line: 7 Qc2 c6 8 Nbd2.} dxc4 {[%emt 0:34:03]} 11. Nxc4 {[%emt 0:00:31]} c5 {[%emt 0:00:52] [#]} 12. d5 {[%emt 0:05:12] White is slightly better.} exd5 {[%emt 0:05:47]} 13. exd5 {[%emt 0:00:08]} Bxc4 {[%emt 0:00:15]} (13... Nxd5 $11 14. Bd2 N7f6) 14. Qxc4 $14 {[%emt 0:00:08]} Bd6 {[%emt 0:00:09] [#]} 15. Nh4 $146 {[%emt 0:03:25] White is more active.} ({Predecessor:} 15. b3 Qc7 16. Bb2 Rae8 17. Rad1 Rxe1+ 18. Rxe1 Re8 19. Rd1 Re7 20. Nh4 g6 21. Nf3 {1-0 Stephan,A-Jordan,W Oberliga Nord N 9394 1993}) 15... Re8 {[%emt 0:06:08]} 16. Rxe8+ {[%emt 0:01:01]} (16. Bg5 $5 {[%cal Rh4f5]}) 16... Qxe8 {[%emt 0:00:16]} 17. Bd2 {[%emt 0:00:47] Repels Qe1+} (17. Nf5 $5 {[%cal Rf5d6]} Qe1+ 18. Qf1 Qxf1+ 19. Kxf1 $14) 17... Ne5 {[%emt 0:01:35]} 18. Qc2 {[%emt 0:00:47]} Qd7 {[%emt 0:02:50]} 19. Nf5 {[%emt 0:01:15]} Bf8 {[%emt 0:03:09] [#]} 20. Bc3 {[%emt 0:04:53]} (20. Bg5 $1 $16) 20... Re8 {[%emt 0:02:20]} 21. Re1 $36 {[%emt 0:04:38][%mdl 2048] White is pushing.} Ng6 {[%emt 0:01:28] [#] White stays focused until the end.} (21... Nc4 $14) 22. Rd1 $1 $16 {[%emt 0:01:30]} Ne7 {[%emt 0:08:01]} (22... Ne5 $16) 23. Ne3 $18 {[%emt 0:01:18]} Nc8 {[%emt 0:01:28]} 24. Bxf6 {[%emt 0:01:01]} gxf6 {[%emt 0:00:07] Black is weak on the light squares} 25. Be4 {[%emt 0:00:28][%cal Bg2e4,Be4h7,Bh7f5][%mdl 32]} Nd6 {[%emt 0:02:42]} 26. Bxh7+ {[%emt 0:00:30]} Kg7 {[%emt 0:00:48]} (26... Kh8 $142 27. Bf5 Qe7) 27. Bf5 {[%emt 0:01:08]} Qe7 {[%emt 0:02:58]} (27... Qb5 28. h4 Re5) 28. Qe2 {[%emt 0:03:47] Qg4+ would kill now.} Ne4 {[%emt 0:05:41]} (28... Kg8 $142 29. Qh5 Nxf5) 29. Qh5 {[%emt 0:00:00][%csl Gf5][%cal Rh5h7]} Ng5 {[%emt 0:00:30] Dodges Qh7+} 30. h4 {[%emt 0:00:00] Intending d6 and mate.} Kg8 {[%emt 0:01:23]} 31. hxg5 {[%emt 0:00:00][%csl Gf5][%cal Rh5h7]} Bg7 {[%emt 0:00:07]} 32. d6 {[%emt 0:00:00][%cal Bd5d6,Bd6d7][%mdl 32]} Qd8 {[%emt 0:01:06]} 33. gxf6 {[%emt 0:00:00]} Qxf6 {[%emt 0:00:21]} 34. d7 {[%emt 0:00:00]} Rd8 {[%emt 0:00:07]} 35. Re1 {[%emt 0:00:55]} (35. Ng4 $142 Qe7 36. Qh7+ Kf8 37. Nh6 Qf6 38. Qg8+ Ke7 39. Re1+ {[%mdl 64] Deflection} Kd6 40. Nxf7+ Kc7 41. Nxd8) 35... Qe7 {[%emt 0:01:08]} 36. Ng2 {[%emt 0:00:16]} Be5 {[%emt 0:00:24] [#]} 37. Rxe5 $1 {[%emt 0:00:28] Weighted Error Value: White=0.06 (flawless) /Black=0.71} 1-0

[Event "Lliga Catalana DH 2023"]
[Site "Catalonia"]
[Date "2023.02.18"]
[Round "5.9"]
[White "Barcelo Tizon, Cristian"]
[Black "Mompel Ferruz, Xavier"]
[Result "0-1"]
[ECO "A13"]
[WhiteElo "2060"]
[BlackElo "2150"]
[Annotator "TA"]
[PlyCount "78"]
[EventDate "2023.01.24"]
[EventType "team-tourn"]
[EventCountry "ESP"]
[SourceTitle "playchess.com"]
[Source "ChessBase"]
[SourceQuality "1"]
[TimeControl "40/5400+30:1800+30"]

{[%evp 9,78,13,23,-21,29,16,25,0,0,0,20,0,12,7,17,0,6,-14,-13,-7,-16,-21,16,14,11,0,0,-26,-18,-20,-14,-41,-35,-41,-16,-17,-24,-45,-35,-60,-37,-85,-74,-127,-120,-175,-139,-143,-59,-41,-19,-19,-22,-23,-14,-19,-13,-12,-21,-41,-53,-56,-54,-254,-261,-5414,-5193,-29982,-29983,-29983,-29984]} 1. c4 c6 2. g3 d5 3. Bg2 Nf6 4. Qc2 e6 5. Nf3 Bd6 6. d3 {A13: English Opening: 1...e6.} Nbd7 (6... e5 $142) 7. O-O O-O 8. e4 {White has an edge.} dxe4 9. dxe4 Qc7 10. Nc3 b6 {[#]} 11. Rd1 $146 ({Predecessor:} 11. Bg5 h6 12. Bxf6 Nxf6 13. e5 Bxe5 14. Nxe5 Qxe5 15. Bxc6 Rb8 16. Bf3 Bb7 17. Rfe1 {½-½ Hibner,B (2080)-Cacic,M (1631) Velika Gorica op 8th 2008 (3)}) 11... Bb7 12. Bg5 Bc5 13. a3 Ng4 14. Rf1 h6 15. Bf4 e5 16. Bd2 Rfe8 17. h3 Ngf6 18. Ne2 Bf8 19. Rfd1 Nc5 20. Nh4 Rad8 21. Be3 Rxd1+ 22. Rxd1 Rd8 23. Bxc5 Bxc5 24. Nf5 a5 25. Bf3 (25. Rxd8+ $15 {feels stronger.} Qxd8 26. Nc1) 25... Bc8 26. g4 (26. Rxd8+ $142 Qxd8 27. Bg2) 26... Nh7 27. Rd2 (27. Bg2 $17 {is a better defense.}) 27... Ng5 28. Bg2 Bxf5 (28... g6 $17 29. Ne3 Ne6) 29. exf5 $15 {White is weak on the dark squares} Rxd2 30. Qxd2 e4 {[#] aiming for ...Nf3+.} 31. b4 axb4 32. axb4 Bd6 33. Qc3 Qe7 34. b5 cxb5 35. cxb5 {[%cal Of5f6]} Bc5 {...Qd6 would be deadly.} 36. Qc4 $2 {[#] White does not recover from this.} (36. Ng3 $15) 36... Nf3+ $19 37. Bxf3 $2 (37. Kh1 Bxf2 38. Qc3) 37... exf3 38. Ng3 Qe1+ 39. Qf1 Bxf2+ {Weighted Error Value: White=0.61/Black=0.13 (very precise)} 0-1

[Event "Lliga Catalana DH 2023"]
[Site "Catalonia"]
[Date "2023.02.18"]
[Round "5.10"]
[White "Congiu, Mathilde"]
[Black "Staromiejski Llorente, Albert"]
[Result "*"]
[ECO "C10"]
[WhiteElo "2201"]
[BlackElo "1734"]
[Annotator "TA"]
[PlyCount "26"]
[EventDate "2023.01.24"]
[EventType "team-tourn"]
[EventCountry "ESP"]
[SourceTitle "playchess.com"]
[Source "ChessBase"]
[SourceQuality "1"]
[TimeControl "40/5400+30:1800+30"]

{[%evp 9,26,52,64,50,95,97,98,79,89,94,119,75,93,81,102,104,140,49,56]} 1. e4 {[%cal Be2e4,Be4e5][%mdl 32]} Nc6 2. Nc3 e6 3. d4 d5 4. Nf3 Bb4 5. e5 f6 6. a3 {C10: French with 3 Nc3: Unusual Black 3rd moves and 3...dxe4.} Ba5 7. b4 Bb6 8. Na4 {[#] White is more active. White is better.} ({Don't do} 8. Bb5 Nge7 $14) 8... Nge7 $146 ({Predecessor:} 8... fxe5 9. Nxb6 axb6 10. dxe5 Nge7 11. Bd3 O-O 12. Ng5 Nf5 13. g4 h6 14. Nxe6 Bxe6 15. gxf5 Bxf5 16. Bxf5 Rxf5 17. Qg4 Rxe5+ 18. Kf1 Qf6 19. Rb1 {½-½ Contessotto,E (2167)-Zunino,J Chivilcoy IRT CEFA/Ceramica 2001 (9)}) 9. exf6 gxf6 10. Bb2 Ng6 11. h4 {[%cal Bh2h4,Bh4h5][%mdl 32]} Bd7 12. h5 Nge7 13. Nxb6 ({White should try} 13. c4 $16) 13... axb6 {Weighted Error Value: White=0.21 (precise) /Black=0.14 (very precise)} *

[Event "Lliga Catalana DH 2023"]
[Site "Catalonia"]
[Date "2023.02.18"]
[Round "5.10"]
[White "Vicente Bessen, Kirian"]
[Black "Jareno Badenas, Aleix"]
[Result "0-1"]
[ECO "A67"]
[WhiteElo "1811"]
[BlackElo "2110"]
[Annotator "TA"]
[PlyCount "73"]
[EventDate "2023.01.24"]
[EventType "team-tourn"]
[EventCountry "ESP"]
[SourceTitle "playchess.com"]
[Source "ChessBase"]
[SourceQuality "1"]
[TimeControl "40/5400+30:1800+30"]

{[%evp 22,73,33,28,39,37,39,39,35,9,72,67,77,33,68,33,56,54,70,35,64,43,45,-23,-20,-266,-217,-203,-250,-235,-201,-350,-329,-358,-320,-325,-330,-478,-431,-448,-433,-444,-448,-514,-387,-379,-354,-469,-404,-444,-447,-430,-414,-545]} 1. d4 {[%emt 0:00:04]} Nf6 {[%emt 0:00:07]} 2. c4 {[%emt 0:00:05]} c5 {[%emt 0:00:06]} 3. d5 {[%emt 0:00:48]} e6 {[%emt 0:00:05]} 4. Nc3 {[%emt 0:00:04]} exd5 {[%emt 0:00:06]} 5. cxd5 {[%emt 0:00:09]} d6 {[%emt 0:00:03]} 6. e4 {[%emt 0:00:16]} g6 {[%emt 0:00:42]} 7. f4 {[%emt 0:03:21]} Bg7 {[%emt 0:01:18]} 8. Bb5+ {[%emt 0:01:23]} Nfd7 {[%emt 0:00:05]} 9. a4 {[%emt 0:02:26]} O-O {[%emt 0:03:07]} 10. Nf3 {[%emt 0:06:41]} Na6 {[%emt 0:02:11]} 11. O-O {[%emt 0:01:01]} Nb4 $1 {[%emt 0:04:21] 11...Nb4 scores better than 11...Nc7.} 12. Be3 {[%emt 0:05:54][%cal Bc1e3,Be3f2,Bf2h4][%mdl 32]} a6 {[%emt 0:03:51] A67: Modern Benoni: Taimanov Variation.} 13. Be2 {[%emt 0:03:13]} Re8 {[%emt 0:04:13]} 14. Bf2 $1 {[%emt 0:00:00]} Nf6 {[%emt 0:29:41] White is slightly better.} 15. Bh4 {[%emt 0:00:00] [#] e5 would be deadly.} Qb6 {[%emt 0:00:54]} (15... Bg4 $11 {remains equal.}) 16. Nd2 $16 {[%emt 0:01:14] Hoping for Nc4.} Qc7 $1 {[%emt 0:12:21] [#]} 17. Re1 $146 {[%emt 0:23:03]} ({Predecessor:} 17. a5 Bd7 18. h3 Rab8 19. Kh2 Rbc8 20. Qb1 Rb8 21. Rf2 h6 22. Nc4 Bb5 23. Kh1 {1-0 Zittel,M (1908)-Laine,E (1779) W-ch WS/H/623 email 2017}) 17... Bd7 {[%emt 0:02:53][%cal Ob7b5]} 18. g4 {[%emt 0:08:52]} h6 {[%emt 0:24:52][%cal Oc5c4]} 19. Kh1 {[%emt 0:22:56]} Rab8 {[%emt 0:00:00]} 20. Rg1 {[%emt 0:10:10]} b5 {[%emt 0:00:23]} 21. g5 {[%emt 0:00:21]} hxg5 {[%emt 0:03:27]} 22. fxg5 {[%emt 0:00:10]} (22. Bxg5 $14 Nbxd5 23. exd5) 22... Nh7 $11 {[%emt 0:00:58]} 23. Bg4 $2 {[%emt 0:02:24] [#] This move loses the game for White.} (23. axb5 $11 {and White is okay.} axb5 24. Bf2) 23... Bxg4 {[%emt 0:00:52]} 24. Qxg4 {[%emt 0:00:01]} Nd3 {[%emt 0:00:10]} 25. axb5 {[%emt 0:04:13]} Nxb2 {[%emt 0:02:26]} 26. Ne2 {[%emt 0:02:53]} (26. b6 $142 Qxb6 27. Qf3) 26... axb5 $19 {[%emt 0:00:31]} 27. Ra6 {[%emt 0:00:36]} Rb6 {[%emt 0:01:22]} 28. Rxb6 {[%emt 0:00:31]} Qxb6 {[%emt 0:00:02]} 29. Ng3 {[%emt 0:00:45]} (29. Rf1 $142 Qc7 30. Bg3) 29... Qb7 {[%emt 0:01:55]} 30. Qf4 {[%emt 0:01:23]} Be5 {[%emt 0:00:56]} 31. Qf3 {[%emt 0:00:01]} c4 {[%emt 0:01:17]} 32. Nf5 {[%emt 0:01:00]} Nd3 {[%emt 0:00:40]} 33. Nh6+ {[%emt 0:00:22]} Kg7 {[%emt 0:00:05]} 34. Ng4 {[%emt 0:00:20]} Bd4 {[%emt 0:00:43] Against Qe3} 35. Rf1 {[%emt 0:00:37]} Ne5 {[%emt 0:00:04]} 36. Nxe5 {[%emt 0:00:33]} Bxe5 {[%emt 0:00:02]} (36... dxe5 $2 {is the wrong capture.} 37. Qd1 $19) 37. Qg4 {[%emt 0:01:10] Weighted Error Value: White=0.53/Black=0.23 (precise)} 0-1